fUSD/lending_fUSD_20251225
["ID","MTS","AMOUNT","RATE_DAILY","PERIOD"]
[399693847,1766625041946,-1098.0,0.00015364,2]
[399693848,1766625041955,-166.66,0.00015428,2]
[399693849,1766625041965,-150.0,0.00015432,2]
[399693850,1766625041974,-215.0738,0.00015555,2]
[399693851,1766625041984,-365.31,0.00015765,2]
[399693852,1766625041993,-177.62,0.00015765,2]
[399693853,1766625042002,-5300.74,0.0001583,2]
[399693854,1766625042012,-6105.51,0.0001583,2]
[399693855,1766625042021,-600.0,0.0001584,2]
[399693856,1766625042030,-3001.38,0.00015923,2]
[399693857,1766625042039,-1098.0,0.00016173,2]
[399693858,1766625042049,-200.0,0.00016179,2]
[399693859,1766625042058,-368.19,0.00016249,2]
[399693860,1766625042067,-736.0,0.00016298,2]
[399693861,1766625042077,-395.88360441,0.00016375,2]
[399693862,1766625042088,-516.24977796,0.00016438,2]
[399693863,1766625042097,-12188.8,0.00016438,2]
[399693864,1766625042107,-13520.9,0.00016666,2]
[399693865,1766625042116,-823.0,0.00016668,2]
[399693866,1766625042126,-823.0,0.00016668,2]
[399693867,1766625042136,-3292.0,0.00016801,2]
[399693868,1766625042145,-5159.29,0.00016922,2]
[399693869,1766625042155,-23332.38,0.00016922,2]
[399693870,1766625042164,-9999.99,0.00016922,2]
[399693871,1766625042174,-405.22,0.00016922,2]
[399693872,1766625042183,-288.0,0.00016967,2]
[399693873,1766625042192,-500.0,0.00016973,2]
[399693874,1766625042202,-500.0,0.00016973,2]
[399693875,1766625042212,-162.0324,0.00016973,2]
[399693876,1766625042221,-500.0,0.00016973,2]
[399693877,1766625042231,-500.0,0.00016973,2]
[399693878,1766625042240,-500.0,0.00016973,2]
[399693879,1766625042250,-500.0,0.00016973,2]
[399693880,1766625042259,-500.0,0.00016973,2]
[399693881,1766625042269,-500.0,0.00016973,2]
[399693882,1766625042278,-500.0,0.00016986,2]
[399693883,1766625042287,-500.0,0.00016986,2]
[399693884,1766625042297,-500.0,0.00016986,2]
[399693885,1766625042307,-500.0,0.00016986,2]
[399693886,1766625042317,-500.0,0.00016986,2]
[399693887,1766625042327,-500.0,0.00016986,2]
[399693888,1766625042338,-574.72487686,0.00016986,2]
[399693889,1766625042347,-250.0,0.00017,2]
[399693890,1766625042358,-1098.0,0.00017024,2]
[399693891,1766625042368,-368.19,0.00017152,2]
[399693892,1766625042378,-339.0,0.0001717,2]
[399693893,1766625042387,-309.19120433,0.0001732,2]
[399693894,1766625042397,-353.92874992,0.00017521,2]
[399693895,1766625042406,-500.0,0.00017521,2]
[399693896,1766625042416,-500.0,0.00017521,2]
[399693897,1766625042425,-500.0,0.00017521,2]
[399693898,1766625042435,-500.0,0.00017521,2]
[399693899,1766625042445,-1252.0,0.00017698,2]
[399693900,1766625042455,-1098.0,0.0001792,2]
[399693902,1766625042466,-303.44161789,0.00017966,2]
[399693904,1766625042476,-500.0,0.00017972,2]
[399693905,1766625042485,-500.42799318,0.00017973,2]
[399693906,1766625042495,-500.0,0.00017973,2]
[399693907,1766625042505,-500.0,0.00017973,2]
[399693908,1766625042515,-500.0,0.00017973,2]
[399693909,1766625042525,-500.3718357,0.00017973,2]
[399693910,1766625042535,-570.6142812,0.00017973,2]
[399693911,1766625042545,-162.47512997,0.00017973,2]
[399693912,1766625042555,-500.0,0.00017973,2]
[399693913,1766625042565,-500.0,0.00017973,2]
[399693914,1766625042574,-500.36254835,0.00017973,2]
[399693915,1766625042584,-500.0,0.00017973,2]
[399693916,1766625042594,-500.0,0.00017973,2]
[399693918,1766625042603,-500.0,0.00017973,2]
[399693920,1766625042613,-500.0,0.00017973,2]
[399693921,1766625042623,-500.0,0.00017973,2]
[399693922,1766625042632,-500.67919196,0.00017973,2]
[399693923,1766625042642,-500.22140656,0.00017973,2]
[399693924,1766625042651,-575.447525,0.00017973,2]
[399693925,1766625042662,-160.28006364,0.00017973,2]
[399693926,1766625042671,-500.0,0.00017973,2]
[399693927,1766625042681,-640.00175838,0.00017973,2]
[399693928,1766625042690,-160.27935937,0.00017973,2]
[399693929,1766625042699,-500.41261549,0.00017973,2]
[399693930,1766625042708,-500.0,0.00017973,2]
[399693931,1766625042722,-500.4712,0.00017973,2]
[399693932,1766625042732,-500.0,0.00017973,2]
[399693933,1766625042742,-500.0,0.00017973,2]
[399693934,1766625042751,-500.82117656,0.00017973,2]
[399693935,1766625042763,-500.0,0.00017973,2]
[399693936,1766625042773,-500.37592798,0.00017973,2]
[399693937,1766625042783,-160.28006419,0.00017973,2]
[399693938,1766625042794,-500.0,0.00017973,2]
[399693939,1766625042804,-500.0,0.00017973,2]
[399693940,1766625042813,-500.0,0.00017973,2]
[399693941,1766625042823,-156.62518783,0.00017973,2]
[399693942,1766625042833,-500.0,0.00017973,2]
[399693943,1766625042843,-556.28902604,0.00017973,2]
[399693944,1766625042853,-500.0,0.00017973,2]
[399693945,1766625042863,-500.0,0.00017973,2]
[399693946,1766625042873,-500.0,0.00017973,2]
[399693947,1766625042882,-500.0,0.00017973,2]
[399693948,1766625042892,-150.01500017,0.00017973,2]
[399693949,1766625042902,-640.32887025,0.00017973,2]
[399693950,1766625042911,-500.38208314,0.00017973,2]
[399693951,1766625042921,-150.25848283,0.00017973,2]
[399693952,1766625042930,-160.27197192,0.00017973,2]
[399693953,1766625042940,-500.0,0.00017973,2]
[399693954,1766625042949,-509.43327994,0.00017973,2]
[399693955,1766625042958,-500.0,0.00017973,2]
[399693956,1766625042968,-566.59580681,0.00017973,2]
[399693957,1766625042978,-500.0,0.00017973,2]
[399693958,1766625042987,-500.0,0.00017973,2]
[399693959,1766625042996,-500.0,0.00017973,2]
[399693960,1766625043006,-500.0,0.00017973,2]
[399693961,1766625043016,-500.0,0.00017973,2]
[399693962,1766625043025,-500.19289853,0.00017973,2]
[399693963,1766625043035,-500.0,0.00017973,2]
[399693964,1766625043044,-530.33299684,0.00017973,2]
[399693965,1766625043054,-500.0,0.00017973,2]
[399693966,1766625043063,-181.04592189,0.00017973,2]
[399693967,1766625043073,-506.49407509,0.00017973,2]
[399693968,1766625043083,-500.0,0.00017973,2]
[399693969,1766625043092,-500.0,0.00017973,2]
[399693970,1766625043101,-500.62013738,0.00017973,2]
[399693971,1766625043110,-519.15656558,0.00017973,2]
[399693972,1766625043119,-334.79703865,0.00017973,2]
[399693974,1766625043128,-500.0,0.00017973,2]
[399693975,1766625043137,-500.0,0.00017973,2]
[399693976,1766625043376,-160.2351428,0.00017973,2]
[399693977,1766625043453,-500.0,0.00017973,2]
[399693978,1766625043463,-500.0,0.00017973,2]
[399693979,1766625043473,-500.0,0.00017973,2]
[399693980,1766625043482,-500.0,0.00017973,2]
[399693981,1766625043492,-500.0,0.00017973,2]
[399693982,1766625043501,-500.0,0.00017973,2]
[399693983,1766625043510,-500.0,0.00017973,2]
[399693984,1766625043520,-500.0,0.00017973,2]
[399693985,1766625043530,-164.90862468,0.00017973,2]
[399693986,1766625043539,-368.19,0.00018055,2]
[399693987,1766625043548,-13520.9,0.00018224,2]
[399693988,1766625043558,-1152.0,0.00018286,2]
[399693989,1766625043567,-1152.0,0.00018286,2]
[399693990,1766625043577,-219.95351466,0.00018294,2]
[399693991,1766625043587,-2483.9806,0.00018421,2]
[399693992,1766625043597,-4609.0,0.00018481,2]
[399693993,1766625043607,-1000.0,0.00018521,2]
[399693994,1766625043616,-1000.0,0.00018521,2]
[399693995,1766625043625,-1000.0,0.00018521,2]
[399693996,1766625043634,-250.55305076,0.00018521,2]
[399693997,1766625043644,-1000.0,0.00018521,2]
[399693998,1766625043653,-357.01582357,0.00018521,2]
[399693999,1766625043663,-1000.0,0.00018521,2]
[399694000,1766625043672,-1000.0,0.00018521,2]
[399694001,1766625043682,-1000.0,0.00018521,2]
[399694002,1766625043692,-1000.0,0.00018521,2]
[399694003,1766625043702,-1000.0,0.00018521,2]
[399694004,1766625043712,-1005.88663379,0.00018521,2]
[399694005,1766625043723,-1146.80307753,0.00018521,2]
[399694006,1766625043733,-500.54278479,0.00018521,2]
[399694007,1766625043742,-1000.0,0.00018521,2]
[399694008,1766625043751,-502.64435602,0.00018521,2]
[399694009,1766625043762,-1000.0,0.00018521,2]
[399694010,1766625043772,-1000.0,0.00018521,2]
[399694011,1766625043781,-1000.0,0.00018521,2]
[399694012,1766625043794,-900.36560755,0.00018521,2]
[399694013,1766625043803,-1000.0,0.00018521,2]
[399694014,1766625043814,-1000.0,0.00018521,2]
[399694015,1766625043824,-1000.0,0.00018521,2]
[399694016,1766625043833,-1000.0,0.00018521,2]
[399694017,1766625043843,-150.98,0.000188,2]
[399694018,1766625043853,-150.98,0.000188,2]
[399694019,1766625043863,-1098.0,0.00018864,2]
[399694020,1766625043872,-368.19,0.00018957,2]
[399694021,1766625043882,-150.0,0.00018973,2]
[399694022,1766625043892,-300.0,0.00019,2]
[399694023,1766625043902,-1500.0,0.00019068,2]
[399694024,1766625043912,-1500.0,0.00019068,2]
[399694025,1766625043922,-1500.0,0.00019068,2]
[399694026,1766625043931,-1500.0,0.00019068,2]
[399694027,1766625043940,-1500.0,0.00019068,2]
[399694028,1766625043949,-1500.0,0.00019068,2]
[399694029,1766625043958,-1500.0,0.00019068,2]
[399694030,1766625043968,-1500.0,0.00019068,2]
[399694031,1766625043977,-1500.0,0.00019068,2]
[399694032,1766625043987,-677.04950538,0.00019068,2]
[399694033,1766625043996,-1500.0,0.00019068,2]
[399694034,1766625044007,-1500.0,0.00019068,2]
[399694035,1766625044017,-1500.0,0.00019068,2]
[399694036,1766625044027,-1500.0,0.00019068,2]
[399694037,1766625044036,-1500.0,0.00019068,2]
[399694038,1766625044046,-1500.0,0.00019068,2]
[399694039,1766625044056,-1500.0,0.00019068,2]
[399694040,1766625044065,-2129.0,0.00019225,2]
[399694041,1766625044075,-150.99,0.00019339,2]
[399694042,1766625044085,-576.39,0.00019339,2]
[399694043,1766625044094,-150.99,0.00019339,2]
[399694044,1766625044103,-6489.74,0.00019339,2]
[399694045,1766625044113,-533.64,0.00019339,2]
[399694046,1766625044123,-999.99,0.00019339,2]
[399694047,1766625044132,-151.42395308,0.00019504,2]
[399694048,1766625044142,-150.2114992,0.00019521,2]
[399694049,1766625044152,-1000.0,0.00019616,2]
[399694050,1766625044161,-1000.0,0.00019616,2]
[399694051,1766625044171,-2000.0,0.00019616,2]
[399694052,1766625044179,-2000.0,0.00019616,2]
[399694053,1766625044189,-218.13226304,0.00019616,2]
[399694054,1766625044199,-2079.84715675,0.00019616,2]
[399694055,1766625044209,-306.90902189,0.00019616,2]
[399694056,1766625044218,-1600.91603799,0.00019616,2]
[399694057,1766625044228,-2000.0,0.00019616,2]
[399694058,1766625044237,-2000.0,0.00019616,2]
[399694059,1766625044246,-1471.92079505,0.00019616,2]
[399694060,1766625044256,-2000.0,0.00019616,2]
[399694061,1766625044266,-2000.0,0.00019616,2]
[399694062,1766625044276,-2000.0,0.00019616,2]
[399694063,1766625044286,-2000.0,0.00019616,2]
[399694064,1766625044296,-2000.0,0.00019616,2]
[399694065,1766625044306,-150.0,0.00019616,2]
[399694066,1766625044315,-150.98,0.00019771,2]
[399694067,1766625044326,-13520.9,0.00019781,2]
[399694068,1766625044336,-1098.0,0.00019856,2]
[399694069,1766625044346,-368.19,0.0001986,2]
[399694070,1766625044355,-1613.0,0.00020062,2]
[399694071,1766625044365,-1022.0,0.00020062,2]
[399694072,1766625044374,-395.88360441,0.00020129,2]
[399694073,1766625044384,-2500.0,0.00020164,2]
[399694074,1766625044394,-2500.0,0.00020164,2]
[399694075,1766625044404,-2446.68353605,0.00020164,2]
[399694076,1766625044413,-1468.84874159,0.00020164,2]
[399694077,1766625044423,-2381.04120458,0.00020164,2]
[399694078,1766625044434,-1496.61681738,0.00020164,2]
[399694079,1766625044444,-1003.6854697,0.00020164,2]
[399694080,1766625044455,-2500.0,0.00020164,2]
[399694081,1766625044465,-2500.0,0.00020164,2]
[399694082,1766625044475,-150.0,0.00020245,2]
[399694083,1766625044486,-228.266,0.00020245,2]
[399694084,1766625044496,-6453.0,0.0002033,2]
[399694085,1766625044506,-368.19,0.00020763,2]
[399694086,1766625044515,-1200.0,0.00020879,2]
[399694087,1766625044525,-1098.0,0.00020901,2]
[399694088,1766625044535,-350.0,0.00021,2]
[399694089,1766625044545,-151.42395308,0.00021129,2]
[399694090,1766625044555,-11992.19,0.0002127,2]
[399694091,1766625044565,-150.98,0.00021329,2]
[399694092,1766625044574,-129230.08561314,0.00021339,2]
[399694093,1766625044583,-13520.9,0.00021339,2]
[399694094,1766625044593,-436.67,0.00021421,2]
[399694095,1766625044603,-430.23,0.00021421,2]
[399694096,1766625044613,-617.446,0.00021459,2]
[399694097,1766625044623,-3458.0,0.00021459,2]
[399694098,1766625044632,-1609.0,0.00021467,2]
[399694099,1766625044642,-522.207,0.00021467,2]
[399694100,1766625044651,-1267.071,0.00021467,2]
[399694101,1766625044661,-564.0,0.00021467,2]
[399694102,1766625044671,-2430.0,0.00021467,2]
[399694103,1766625044680,-6533.0,0.00021467,2]
[399694104,1766625044690,-4807.0,0.00021467,2]
[399694105,1766625044699,-368.19,0.00021666,2]
[399694106,1766625044709,-365.31,0.00021671,2]
[399694107,1766625044725,-177.62,0.00021671,2]
[399694108,1766625044735,-436.67,0.00021695,2]
[399694109,1766625044745,-430.23,0.00021695,2]
[399694110,1766625044755,-600.0,0.00021767,2]
[399694111,1766625044765,-250.0,0.00021831,2]
[399694112,1766625044775,-156.381,0.00021831,2]
[399694113,1766625044786,-2000.0,0.000219,2]
[399694114,1766625044796,-150.0,0.000219,2]
[399694115,1766625044807,-404.63,0.000219,7]
[399694116,1766625044817,-500.0,0.00021917,2]
[399694117,1766625044826,-500.0,0.00021917,2]
[399694118,1766625044836,-500.0,0.00021917,2]
[399694119,1766625044845,-500.0,0.00021917,2]
[399694120,1766625044855,-5000.0,0.00021918,2]
[399694121,1766625044864,-153.0,0.00021918,2]
[399694122,1766625044874,-153.0,0.00021918,2]
[399694123,1766625044884,-153.0,0.00021918,2]
[399694124,1766625044894,-153.0,0.00021918,2]
[399694125,1766625044903,-153.0,0.00021918,2]
[399694126,1766625044913,-153.0,0.00021918,2]
[399694127,1766625044923,-153.0,0.00021918,2]
[399694128,1766625044932,-153.0,0.00021918,2]
[399694129,1766625044942,-153.0,0.00021918,2]
[399694130,1766625044951,-153.0,0.00021918,2]
[399694131,1766625044962,-166.34344729,0.00021918,2]
[399694132,1766625044973,-199.42004632,0.00021918,2]
[399694133,1766625044983,-250.0,0.00021925,2]
[399694134,1766625044993,-211.528,0.00021925,2]
[399694135,1766625045003,-250.0,0.00021925,2]
[399694136,1766625045014,-166.0,0.00021925,2]
[399694137,1766625045023,-226.805,0.00021925,2]
[399694138,1766625045033,-436.67,0.00021969,2]
[399694139,1766625045043,-430.23,0.00021969,2]
[399694140,1766625045054,-357.77436558,0.00022,8]
[399694141,1766625045064,-271.45,0.00022,7]
[399694142,1766625045075,-151.1,0.00022,2]
[399694143,1766625045085,-1098.0,0.00022002,2]
[399694144,1766625045095,-2258.0,0.00022009,2]
[399694145,1766625045104,-6105.51,0.00022161,2]
[399694146,1766625045114,-352.19,0.00022243,2]
[399694147,1766625045124,-9035.0,0.00022363,2]
[399694148,1766625045134,-368.19,0.00022568,2]
[399694149,1766625045143,-500.0,0.00022733,2]
[399694150,1766625045153,-151.42395308,0.00022754,2]
[399694151,1766625045162,-13520.9,0.00022897,2]
[399694152,1766625045172,-400.0,0.00023,2]
[399694153,1766625045182,-356.93677672,0.00023079,2]
[399694154,1766625045191,-1098.0,0.00023102,2]
[399694155,1766625045205,-150.0,0.00023245,2]
[399694156,1766625045215,-446.80975449,0.00023471,2]
[399694157,1766625045225,-368.19,0.00023471,2]
[399694158,1766625045235,-2000.0,0.000236,2]
[399694159,1766625045246,-395.88360441,0.00023883,2]
[399694160,1766625045255,-581.0,0.00024146,2]
[399694161,1766625045265,-257.0,0.0002419,2]
[399694162,1766625045276,-257.0,0.0002419,2]
[399694163,1766625045286,-271.45,0.000242,7]
[399694164,1766625045295,-1098.0,0.00024257,2]
[399694165,1766625045306,-257.0,0.00024372,2]
[399694166,1766625045315,-368.19,0.00024374,2]
[399694167,1766625045326,-151.42395308,0.00024379,2]
[399694168,1766625045335,-3158.0,0.0002439,2]
[399694169,1766625045345,-13520.9,0.00024454,2]
[399694170,1766625045355,-612.0,0.00024459,2]
[399694171,1766625045365,-3458.0,0.00024459,2]
[399694172,1766625045375,-1609.0,0.00024467,2]
[399694173,1766625045386,-432.0,0.00024467,2]
[399694174,1766625045395,-1263.0,0.00024467,2]
[399694175,1766625045406,-564.0,0.00024467,2]
[399694176,1766625045416,-2430.0,0.00024467,2]
[399694177,1766625045426,-6533.0,0.00024467,2]
[399694178,1766625045436,-4807.0,0.00024467,2]
[399694179,1766625045446,-365.31,0.00024534,2]
[399694180,1766625045456,-177.62,0.00024534,2]
[399694182,1766625045466,-257.0,0.00024542,2]
[399694183,1766625045475,-600.0,0.00024577,2]
[399694184,1766625045485,-151.1,0.00024599,2]
[399694185,1766625045496,-2192.0,0.00024599,2]
[399694186,1766625045505,-257.0,0.00024634,2]
[399694187,1766625045514,-1000.0,0.00024658,2]
[399694188,1766625045524,-697.66,0.00024658,2]
[399694189,1766625045533,-257.0,0.00024684,2]
[399694190,1766625045543,-5420.0,0.000247,2]
[399694191,1766625045553,-257.0,0.00024746,2]
[399694192,1766625045563,-500.0,0.00024799,2]
[399694193,1766625045573,-578.59832559,0.00024799,2]
[399694194,1766625045582,-2086.57419273,0.00024799,2]
[399694195,1766625045592,-257.0,0.00024801,7]
[399694196,1766625045602,-150.0,0.00024831,2]
[399694197,1766625045613,-150.0,0.00024831,2]
[399694198,1766625045622,-150.0,0.0002489,2]
[399694199,1766625045631,-151.0,0.00024897,7]
[399694200,1766625045641,-601384.793005,0.000249,3]
[399694201,1766625045650,-150.0,0.00024925,2]
[399694202,1766625045660,-150.0,0.00024925,2]
[399694203,1766625045670,-150.0,0.00024925,2]
[399694204,1766625045680,-150.0,0.00024925,2]
[399694205,1766625045689,-450.0,0.00025,2]
[399694206,1766625045700,-150.0,0.00025,2]
[399694207,1766625045712,-150.0,0.00025,2]
[399694208,1766625045724,-150.0,0.00025,2]
[399694209,1766625045734,-150.0,0.00025,2]
[399694210,1766625045743,-150.0,0.00025,2]
[399694211,1766625045754,-150.0,0.00025,2]
[399694212,1766625045763,-288.717,0.00025,2]
[399694213,1766625045773,-7035.82421911,0.00025,2]
[399694214,1766625045783,-5526.0,0.000251,3]
[399694215,1766625045793,-257.0,0.00025205,2]
[399694216,1766625045803,-257.0,0.00025217,2]
[399694217,1766625045814,-3158.0,0.00025246,2]
[399694218,1766625045824,-1098.0,0.00025469,2]
[399694219,1766625045834,-2000.0,0.000256,2]
[399694220,1766625045844,-5526.0,0.000256,5]
[399694221,1766625045855,-829.99520841,0.000257,2]
[399694222,1766625045865,-829.99520841,0.000257,2]
[399694223,1766625045876,-257.0,0.00025758,2]
[399694224,1766625045886,-3158.0,0.00025796,2]
[399694225,1766625045896,-271.45,0.000258,7]
[399694226,1766625045907,-257.0,0.00025857,2]
[399694227,1766625045918,-3158.0,0.00025902,7]
[399694228,1766625045928,-500.0,0.00025973,2]
[399694229,1766625045938,-151.42395308,0.00026005,2]
[399694230,1766625045948,-13520.9,0.00026012,2]
[399694231,1766625045958,-3162.0,0.00026118,2]
[399694232,1766625045967,-257.0,0.0002616,2]
[399694233,1766625045978,-257.0,0.00026177,2]
[399694234,1766625045988,-322.6107,0.0002618,2]
[399694235,1766625045998,-250.0,0.0002618,2]
[399694236,1766625046007,-333.54777997,0.0002618,2]
[399694237,1766625046017,-574.12855637,0.0002618,2]
[399694238,1766625046027,-500.0,0.0002618,2]
[399694240,1766625046036,-721.12765535,0.0002618,2]
[399694241,1766625046046,-500.0,0.0002618,2]
[399694242,1766625046055,-500.0,0.0002618,2]
[399694243,1766625046065,-500.0,0.0002618,2]
[399694244,1766625046074,-200.0,0.0002618,2]
[399694245,1766625046084,-500.0,0.0002618,2]
[399694246,1766625046094,-207.4,0.0002618,2]
[399694247,1766625046104,-620.0,0.0002618,2]
[399694248,1766625046114,-500.0,0.0002618,2]
[399694249,1766625046124,-215.0738,0.0002618,2]
[399694250,1766625046135,-500.0,0.0002618,2]
[399694251,1766625046146,-223.0315306,0.0002618,2]
[399694252,1766625046156,-500.0,0.0002618,2]
[399694253,1766625046166,-231.28369723,0.0002618,2]
[399694254,1766625046176,-500.0,0.0002618,2]
[399694255,1766625046188,-239.84119403,0.0002618,2]
[399694256,1766625046200,-500.0,0.0002618,2]
[399694257,1766625046211,-248.71531821,0.0002618,2]
[399694258,1766625046220,-500.0,0.0002618,2]
[399694259,1766625046230,-257.91778498,0.0002618,2]
[399694260,1766625046240,-267.46074303,0.0002618,2]
[399694261,1766625046250,-277.35679052,0.0002618,2]
[399694262,1766625046260,-209.40437684,0.0002618,2]
[399694263,1766625046270,-500.0,0.0002618,2]
[399694264,1766625046280,-209.40437684,0.0002618,2]
[399694265,1766625046290,-500.0,0.0002618,2]
[399694266,1766625046300,-500.0,0.0002618,2]
[399694267,1766625046311,-500.0,0.0002618,2]
[399694268,1766625046321,-500.0,0.0002618,2]
[399694269,1766625046331,-500.0,0.0002618,2]
[399694270,1766625046341,-500.0,0.0002618,2]
[399694271,1766625046351,-500.0,0.0002618,2]
[399694272,1766625046360,-500.0,0.0002618,2]
[399694273,1766625046370,-500.0,0.0002618,2]
[399694274,1766625046379,-500.0,0.0002618,2]
[399694275,1766625046390,-500.0,0.0002618,2]
[399694276,1766625046400,-500.0,0.0002618,2]
[399694277,1766625046409,-250.0,0.0002618,2]
[399694278,1766625046419,-500.0,0.0002618,2]
[399694279,1766625046430,-500.0,0.0002618,2]
[399694280,1766625046439,-500.0,0.0002618,2]
[399694281,1766625046449,-250.0,0.0002618,2]
[399694282,1766625046459,-500.0,0.0002618,2]
[399694283,1766625046468,-500.0,0.0002618,2]
[399694284,1766625046477,-500.0,0.0002618,2]
[399694285,1766625046487,-250.0,0.0002618,2]
[399694286,1766625046497,-500.0,0.0002618,2]
[399694287,1766625046507,-500.0,0.0002618,2]
[399694288,1766625046516,-500.0,0.0002618,2]
[399694289,1766625046525,-500.0,0.0002618,2]
[399694290,1766625046535,-250.0,0.0002618,2]
[399694291,1766625046545,-500.0,0.0002618,2]
[399694292,1766625046555,-500.0,0.0002618,2]
[399694293,1766625046564,-250.0,0.0002618,2]
[399694294,1766625046574,-160.0,0.0002618,2]
[399694295,1766625046584,-500.0,0.0002618,2]
[399694296,1766625046594,-250.0,0.0002618,2]
[399694297,1766625046603,-500.0,0.0002618,2]
[399694298,1766625046614,-500.0,0.0002618,2]
[399694299,1766625046624,-250.0,0.0002618,2]
[399694300,1766625046634,-500.0,0.0002618,2]
[399694301,1766625046644,-500.0,0.0002618,2]
[399694302,1766625046654,-250.0,0.0002618,2]
[399694303,1766625046663,-500.0,0.0002618,2]
[399694304,1766625046672,-500.0,0.0002618,2]
[399694305,1766625046681,-500.0,0.0002618,2]
[399694306,1766625046691,-250.0,0.0002618,2]
[399694307,1766625046701,-500.0,0.0002618,2]
[399694308,1766625046712,-500.0,0.0002618,2]
[399694309,1766625046724,-250.0,0.0002618,2]
[399694310,1766625046734,-500.0,0.0002618,2]
[399694311,1766625046744,-250.0,0.0002618,2]
[399694312,1766625046754,-151.0,0.0002618,2]
[399694313,1766625046764,-151.0,0.0002618,2]
[399694314,1766625046774,-250.0,0.0002618,2]
[399694315,1766625046784,-250.0,0.0002618,2]
[399694316,1766625046795,-250.0,0.0002618,2]
[399694317,1766625046804,-578.20924308,0.0002618,2]
[399694318,1766625046815,-250.0,0.0002618,2]
[399694319,1766625046825,-151.0,0.0002618,2]
[399694320,1766625046835,-250.0,0.0002618,2]
[399694321,1766625046845,-250.0,0.0002618,2]
[399694322,1766625046855,-250.0,0.0002618,2]
[399694323,1766625046864,-250.0,0.0002618,2]
[399694324,1766625046875,-250.0,0.0002618,2]
[399694325,1766625046885,-250.0,0.0002618,2]
[399694326,1766625046895,-250.0,0.0002618,2]
[399694327,1766625046905,-250.0,0.0002618,2]
[399694328,1766625046916,-250.0,0.0002618,2]
[399694329,1766625046925,-250.0,0.0002618,2]
[399694330,1766625046935,-250.0,0.0002618,2]
[399694331,1766625046946,-250.0,0.0002618,2]
[399694332,1766625046955,-250.0,0.0002618,2]
[399694333,1766625046965,-250.0,0.0002618,2]
[399694334,1766625046975,-250.0,0.0002618,2]
[399694335,1766625046987,-250.0,0.0002618,2]
[399694336,1766625046998,-250.0,0.0002618,2]
[399694337,1766625047008,-250.0,0.0002618,2]
[399694338,1766625047019,-500.0,0.0002618,2]
[399694339,1766625047028,-211.90100682,0.00026198,2]
[399694340,1766625047039,-257.0,0.00026331,2]
[399694341,1766625047049,-257.0,0.0002634,2]
[399694342,1766625047059,-257.0,0.00026375,2]
[399694343,1766625047070,-1213.91,0.000264,14]
[399694344,1766625047080,-4749.0,0.00026442,2]
[399694345,1766625047095,-257.0,0.00026489,2]
[399694346,1766625047106,-257.0,0.00026557,2]
[399694347,1766625047118,-3158.0,0.00026601,2]
[399694348,1766625047129,-595.37131296,0.00026728,2]
[399694349,1766625047140,-349.72142517,0.00026728,2]
[399694350,1766625047156,-217.15233878,0.00026728,2]
[399694351,1766625047166,-151.0,0.00026728,2]
[399694352,1766625047176,-151.0,0.00026728,2]
[399694353,1766625047187,-1098.0,0.00026743,2]